[Event "7th Iberoamerican-ch 2019"]
[Site "Linares"]
[Date "2019.08.13"]
[Round "4.18"]
[White "Moreno Ruiz, Javier"]
[Black "Rodriguez Perez, Angel Mariano"]
[Result "1-0"]
[ECO "D86"]
[WhiteElo "2473"]
[BlackElo "2223"]
[Annotator "ChessBase"]
[PlyCount "101"]
[EventDate "2019.08.10"]
[EventType "swiss"]
[EventCountry "ESP"]
[SourceTitle "playchess.com"]
[Source "ChessBase"]
[SourceQuality "1"]
[TimeControl "5400+30"]

1. d4 {[%emt 0:00:00]} Nf6 {[%emt 0:00:00]} 2. c4 {[%emt 0:00:00]} g6 {[%emt 0:00:00]} 3. Nc3 {[%emt 0:00:00]} d5 {[%emt 0:00:00]} 4. cxd5 {[%emt 0:00:39]} Nxd5 {[%emt 0:00:01]} 5. e4 {[%emt 0:00:10]} Nxc3 {[%emt 0:00:06]} 6. bxc3 {[%emt 0:00:05]} Bg7 {[%emt 0:00:06]} 7. Bc4 {[%emt 0:00:24]} c5 {[%emt 0:01:20]} 8. Ne2 {[%emt 0:00:07]} Nc6 {[%emt 0:01:23]} 9. Be3 {[%emt 0:01:08]} cxd4 {[%emt 0:02:57]} 10. cxd4 {[%emt 0:00:10]} Qa5+ {[%emt 0:00:35]} 11. Bd2 {[%emt 0:00:24]} Qd8 {[%emt 0:09:11]} 12. Bc3 {[%emt 0:01:55]} O-O {[%emt 0:00:03]} 13. O-O {[%emt 0:00:36]} Na5 {[%emt 0:01:08]} 14. Bd3 {[%emt 0:01:04]} Bd7 {[%emt 0:01:14]} 15. Qd2 {[%emt 0:07:59]} b6 {[%emt 0:00:55]} 16. Rac1 {[%emt 0:01:01]} Nb7 {[%emt 0:02:29]} 17. Bb2 {[%emt 0:07:46]} Rc8 {[%emt 0:02:33]} 18. Qb4 {[%emt 0:18:11]} Na5 {[%emt 0:05:03]} 19. Ba6 {[%emt 0:02:03]} Rxc1 {[%emt 0:00:25]} 20. Rxc1 {[%emt 0:00:11]} Bc6 {[%emt 0:00:16]} 21. d5 {[%emt 0:11:17]} Bxb2 {[%emt 0:01:15]} 22. Qxb2 {[%emt 0:00:05]} Bb7 {[%emt 0:00:16]} 23. Bxb7 {[%emt 0:00:41]} Nxb7 {[%emt 0:00:07]} 24. Nd4 {[%emt 0:00:09]} Na5 {[%emt 0:10:43]} 25. h4 {[%emt 0:18:44]} Qd7 {[%emt 0:05:12]} 26. h5 {[%emt 0:06:21]} Rc8 {[%emt 0:05:36]} 27. h6 {[%emt 0:00:07]} f6 {[%emt 0:06:24]} 28. Ne6 {[%emt 0:05:02]} Nc4 {[%emt 0:01:41]} 29. Qd4 {[%emt 0:01:43]} Ne5 {[%emt 0:00:45]} 30. Rc3 {[%emt 0:01:33]} Ng4 {[%emt 0:03:02]} 31. f3 {[%emt 0:01:44]} Nxh6 {[%emt 0:01:38]} 32. Qa4 {[%emt 0:00:41]} Qe8 {[%emt 0:03:53]} 33. Rc7 {[%emt 0:03:03]} Nf7 {[%emt 0:04:17]} 34. Qxa7 {[%emt 0:02:03]} Rxc7 {[%emt 0:01:00]} 35. Nxc7 {[%emt 0:00:09]} Qc8 {[%emt 0:03:57]} 36. Qxb6 {[%emt 0:00:05]} f5 {[%emt 0:01:39]} 37. exf5 {[%emt 0:04:12]} Qxf5 {[%emt 0:01:44]} 38. Qb8+ {[%emt 0:02:59]} Kg7 {[%emt 0:00:27]} 39. Ne8+ {[%emt 0:00:18]} Kh6 {[%emt 0:01:00]} 40. Qh2+ {[%emt 0:00:10]} Kg5 {[%emt 0:00:16]} 41. Qg3+ {[%emt 0:00:11]} Kh6 {[%emt 0:00:40]} 42. Qh4+ {[%emt 0:00:17]} Qh5 {[%emt 0:00:16]} 43. Qxh5+ {[%emt 0:02:46]} Kxh5 {[%emt 0:00:16]} 44. a4 {[%emt 0:00:05]} Ne5 {[%emt 0:01:31]} 45. a5 {[%emt 0:00:17]} Nc4 {[%emt 0:01:17]} 46. a6 {[%emt 0:00:15]} Nb6 {[%emt 0:00:05]} 47. Nc7 {[%emt 0:00:50]} Kg5 {[%emt 0:00:06]} 48. a7 {[%emt 0:00:24]} Kf5 {[%emt 0:00:05]} 49. a8=Q {[%emt 0:00:12]} Nxa8 {[%emt 0:00:02]} 50. Nxa8 {[%emt 0:00:07]} Ke5 {[%emt 0:00:02]} 51. Nb6 {[%emt 0:00:06]} 1-0

[Event "7th Iberoamerican-ch 2019"]
[Site "Linares"]
[Date "2019.08.13"]
[Round "4.19"]
[White "Perez Garcia, Alejandro"]
[Black "Del Rio De Angelis, Salvador G."]
[Result "1/2-1/2"]
[ECO "E08"]
[WhiteElo "2347"]
[BlackElo "2464"]
[Annotator "ChessBase"]
[PlyCount "95"]
[EventDate "2019.08.10"]
[EventType "swiss"]
[EventCountry "ESP"]
[SourceTitle "playchess.com"]
[Source "ChessBase"]
[SourceQuality "1"]
[TimeControl "5400+30"]

1. Nf3 {[%emt 0:00:00]} d5 {[%emt 0:00:09]} 2. g3 {[%emt 0:00:15]} Nf6 {[%emt 0:00:40]} 3. Bg2 {[%emt 0:00:39]} e6 {[%emt 0:00:07]} 4. c4 {[%emt 0:01:43]} Be7 {[%emt 0:00:07]} 5. O-O {[%emt 0:00:52]} O-O {[%emt 0:00:08]} 6. d4 {[%emt 0:00:45]} Nbd7 {[%emt 0:01:33]} 7. Qc2 {[%emt 0:02:02]} a5 {[%emt 0:00:18]} 8. Nbd2 {[%emt 0:03:03]} c5 {[%emt 0:00:51]} 9. Rd1 {[%emt 0:08:42]} b6 {[%emt 0:03:57]} 10. cxd5 {[%emt 0:08:34]} Nxd5 {[%emt 0:03:13]} 11. Nc4 {[%emt 0:03:32]} Ba6 {[%emt 0:03:32]} 12. Nfe5 {[%emt 0:07:41]} Nxe5 {[%emt 0:08:50]} 13. dxe5 {[%emt 0:05:05]} Nb4 {[%emt 0:09:27]} 14. Rxd8 {[%emt 0:03:07]} Nxc2 {[%emt 0:00:36]} 15. Rxa8 {[%emt 0:00:09]} Rxa8 {[%emt 0:00:22]} 16. Bxa8 {[%emt 0:00:19]} Bxc4 {[%emt 0:00:13]} 17. b3 {[%emt 0:00:07]} Nxa1 {[%emt 0:00:07]} 18. bxc4 {[%emt 0:00:06]} Nc2 {[%emt 0:00:05]} 19. Kg2 {[%emt 0:11:10]} Nb4 {[%emt 0:06:42]} 20. a3 {[%emt 0:01:27]} Na6 {[%emt 0:00:18]} 21. h4 {[%emt 0:01:54]} Nc7 {[%emt 0:02:57]} 22. Bc6 {[%emt 0:00:24]} Bd8 {[%emt 0:00:43]} 23. h5 {[%emt 0:02:03]} Be7 {[%emt 0:01:52]} 24. g4 {[%emt 0:06:24]} h6 {[%emt 0:02:22]} 25. Kg3 {[%emt 0:02:56]} Bd8 {[%emt 0:00:08]} 26. f4 {[%emt 0:01:19]} Be7 {[%emt 0:00:05]} 27. a4 {[%emt 0:11:34]} g5 {[%emt 0:03:30]} 28. hxg6 {[%emt 0:04:35]} fxg6 {[%emt 0:00:07]} 29. f5 {[%emt 0:01:00]} gxf5 {[%emt 0:02:19]} 30. gxf5 {[%emt 0:05:27]} exf5 {[%emt 0:00:08]} 31. Bxh6 {[%emt 0:00:17]} Kf7 {[%emt 0:00:09]} 32. Bd5+ {[%emt 0:04:23]} Ne6 {[%emt 0:01:09]} 33. Kf3 {[%emt 0:02:27]} Bd8 {[%emt 0:02:52]} 34. e4 {[%emt 0:00:12]} fxe4+ {[%emt 0:00:07]} 35. Kxe4 {[%emt 0:00:05]} Ke7 {[%emt 0:00:08]} 36. Bxe6 {[%emt 0:02:54]} Kxe6 {[%emt 0:00:09]} 37. Bg7 {[%emt 0:00:24]} Bc7 {[%emt 0:12:28]} 38. Bf6 {[%emt 0:00:16]} Bb8 {[%emt 0:00:06]} 39. Bd8 {[%emt 0:00:48]} Bxe5 {[%emt 0:00:05]} 40. Bxb6 {[%emt 0:00:05]} Bc3 {[%emt 0:00:03]} 41. Bxc5 {[%emt 0:00:05]} Be1 {[%emt 0:00:04]} 42. Bf8 {[%emt 0:01:35]} Bf2 {[%emt 0:01:21]} 43. c5 {[%emt 0:00:33]} Kd7 {[%emt 0:00:32]} 44. Kd5 {[%emt 0:00:19]} Bxc5 {[%emt 0:00:06]} 45. Kxc5 {[%emt 0:00:36]} Kc7 {[%emt 0:00:05]} 46. Kb5 {[%emt 0:00:19]} Kb7 {[%emt 0:00:06]} 47. Bd6 {[%emt 0:00:08]} Ka8 {[%emt 0:00:06]} 48. Ka6 1/2-1/2

[Event "7th Iberoamerican-ch 2019"]
[Site "Linares"]
[Date "2019.08.13"]
[Round "4.20"]
[White "Domingo Nunez, Ruben"]
[Black "Larino Nieto, David"]
[Result "1-0"]
[ECO "B10"]
[WhiteElo "2318"]
[BlackElo "2471"]
[Annotator "ChessBase"]
[PlyCount "57"]
[EventDate "2019.08.10"]
[EventType "swiss"]
[EventCountry "ESP"]
[SourceTitle "playchess.com"]
[Source "ChessBase"]
[SourceQuality "1"]
[TimeControl "5400+30"]

1. e4 {[%emt 0:00:00]} c6 {[%emt 0:00:00]} 2. Nf3 {[%emt 0:04:38]} d5 {[%emt 0:00:00]} 3. Nc3 {[%emt 0:00:06]} g6 {[%emt 0:00:00]} 4. d4 {[%emt 0:01:45]} Bg7 {[%emt 0:00:00]} 5. h3 {[%emt 0:00:05]} dxe4 {[%emt 0:00:00]} 6. Nxe4 {[%emt 0:00:05]} Nf6 {[%emt 0:00:00]} 7. Nxf6+ {[%emt 0:00:06]} exf6 {[%emt 0:00:02]} 8. Bd3 {[%emt 0:00:13]} O-O {[%emt 0:00:04]} 9. O-O {[%emt 0:00:05]} a5 {[%emt 0:00:16]} 10. a4 {[%emt 0:13:44]} Na6 {[%emt 0:00:12]} 11. c3 {[%emt 0:00:05]} Qd6 {[%emt 0:01:54]} 12. Nd2 {[%emt 0:04:54]} Be6 {[%emt 0:03:49]} 13. Ne4 {[%emt 0:06:41]} Qd5 {[%emt 0:00:09]} 14. Re1 {[%emt 0:11:47]} Rfe8 {[%emt 0:03:37]} 15. Bf4 {[%emt 0:03:06]} Bf5 {[%emt 0:06:13]} 16. Qc2 {[%emt 0:01:21]} g5 {[%emt 0:06:12]} 17. Bg3 {[%emt 0:04:54]} Re6 {[%emt 0:00:27]} 18. Re3 {[%emt 0:07:22]} Bg6 {[%emt 0:04:07]} 19. Rae1 {[%emt 0:00:44]} Bh6 {[%emt 0:13:56]} 20. Qe2 {[%emt 0:04:08]} f5 {[%emt 0:12:49]} 21. Bc4 {[%emt 0:00:38]} Qd8 {[%emt 0:00:07]} 22. Bxe6 {[%emt 0:02:46]} fxe6 {[%emt 0:00:48]} 23. Nd6 {[%emt 0:11:05]} f4 {[%emt 0:00:02]} 24. Rxe6 {[%emt 0:00:07]} fxg3 {[%emt 0:00:06]} 25. Rxg6+ {[%emt 0:00:58]} hxg6 {[%emt 0:00:13]} 26. Qe6+ {[%emt 0:00:02]} Kh7 {[%emt 0:00:11]} 27. Qf7+ {[%emt 0:00:02]} Bg7 {[%emt 0:00:33]} 28. Ne8 {[%emt 0:00:03]} gxf2+ {[%emt 0:00:04]} 29. Kxf2 {[%emt 0:00:06]} 1-0

[Event "7th Iberoamerican-ch 2019"]
[Site "Linares"]
[Date "2019.08.13"]
[Round "4.21"]
[White "Fluvia Poyatos, Jordi"]
[Black "Rodriguez Del Cerro, Ricardo"]
[Result "1-0"]
[ECO "A00"]
[WhiteElo "2455"]
[BlackElo "2235"]
[Annotator "ChessBase"]
[PlyCount "49"]
[EventDate "2019.08.10"]
[EventType "swiss"]
[EventCountry "ESP"]
[SourceTitle "playchess.com"]
[Source "ChessBase"]
[SourceQuality "1"]
[TimeControl "5400+30"]

1. g3 {[%emt 0:00:00]} Nf6 {[%emt 0:00:13]} 2. Bg2 {[%emt 0:01:14]} d5 {[%emt 0:00:37]} 3. Nf3 {[%emt 0:00:57]} e6 {[%emt 0:00:37]} 4. d3 {[%emt 0:01:25]} Be7 {[%emt 0:01:26]} 5. Nbd2 {[%emt 0:00:47]} c5 {[%emt 0:00:42]} 6. e4 {[%emt 0:00:37]} Nc6 {[%emt 0:00:40]} 7. O-O {[%emt 0:00:19]} b6 {[%emt 0:00:58]} 8. Re1 {[%emt 0:01:33]} Bb7 {[%emt 0:00:31]} 9. c3 {[%emt 0:00:40]} Qc7 {[%emt 0:01:22]} 10. a3 {[%emt 0:00:45]} O-O {[%emt 0:00:48]} 11. e5 {[%emt 0:06:30]} Nd7 {[%emt 0:01:16]} 12. Qe2 {[%emt 0:04:07]} b5 {[%emt 0:00:45]} 13. h4 {[%emt 0:01:40]} a5 {[%emt 0:07:32]} 14. Nf1 {[%emt 0:08:46]} b4 {[%emt 0:05:02]} 15. Bf4 {[%emt 0:01:49]} Nb6 {[%emt 0:05:33]} 16. N1h2 {[%emt 0:14:52]} bxc3 {[%emt 0:19:18]} 17. bxc3 {[%emt 0:00:06]} d4 {[%emt 0:00:51]} 18. c4 {[%emt 0:00:37]} Rfd8 {[%emt 0:05:38]} 19. Ng4 {[%emt 0:14:27]} Bf8 {[%emt 0:05:38]} 20. Ng5 {[%emt 0:01:18]} h6 {[%emt 0:08:58]} 21. Ne4 {[%emt 0:00:27]} Ne7 {[%emt 0:03:19]} 22. Ngf6+ {[%emt 0:11:39]} Kh8 {[%emt 0:00:44]} 23. Nd6 {[%emt 0:03:39]} Nc6 {[%emt 0:19:14]} 24. Nxb7 {[%emt 0:03:25]} Qxb7 {[%emt 0:00:53]} 25. Bxh6 {[%emt 0:01:04]} 1-0

[Event "7th Iberoamerican-ch 2019"]
[Site "Linares"]
[Date "2019.08.13"]
[Round "4.22"]
[White "Serarols Mabras, Bernat"]
[Black "Damaso, Rui"]
[Result "1/2-1/2"]
[ECO "A57"]
[WhiteElo "2381"]
[BlackElo "2425"]
[Annotator "NA"]
[PlyCount "59"]
[EventDate "2019.08.10"]
[EventType "swiss"]
[EventCountry "ESP"]
[SourceTitle "playchess.com"]
[Source "ChessBase"]
[SourceQuality "1"]
[TimeControl "5400+30"]

1. d4 {[%emt 0:00:00]} Nf6 {[%emt 0:00:00]} 2. c4 {[%emt 0:00:00]} c5 {[%emt 0:00:19]} 3. d5 {[%emt 0:00:00]} b5 {[%emt 0:00:14]} 4. cxb5 {[%emt 0:00:00]} a6 {[%emt 0:00:13]} 5. e3 {[%emt 0:00:31]} e6 {[%emt 0:19:33]} 6. Nc3 {[%emt 0:01:48]} exd5 {[%emt 0:03:54]} 7. Nxd5 {[%emt 0:03:29]} Bb7 {[%emt 0:18:09]} 8. Nxf6+ {[%emt 0:03:55]} Qxf6 {[%emt 0:00:12]} 9. Nf3 {[%emt 0:07:29]} Bd6 {[%emt 0:05:15]} 10. a4 {[%emt 0:21:41]} O-O {[%emt 0:01:14]} 11. Rb1 {[%emt 0:14:24]} Bc7 {[%emt 0:07:34]} 12. Bd2 {[%emt 0:01:03]} d5 {[%emt 0:07:24]} 13. Be2 {[%emt 0:05:20]} axb5 {[%emt 0:01:30]} 14. axb5 {[%emt 0:00:15]} Nd7 {[%emt 0:01:34]} 15. O-O {[%emt 0:01:52]} Rfe8 {[%emt 0:06:14]} 16. Bc3 {[%emt 0:04:59]} Qh6 {[%emt 0:00:21]} 17. g3 {[%emt 0:03:03]} Nf6 {[%emt 0:01:34]} 18. Bxf6 {[%emt 0:08:23]} Qxf6 {[%emt 0:00:05]} 19. b4 {[%emt 0:00:40]} d4 {[%emt 0:02:14]} 20. bxc5 {[%emt 0:00:30]} d3 {[%emt 0:01:21]} 21. Qxd3 {[%emt 0:01:02]} Bxf3 {[%emt 0:00:05]} 22. Bxf3 {[%emt 0:00:11]} Qxf3 {[%emt 0:00:06]} 23. b6 {[%emt 0:07:00]} Be5 {[%emt 0:00:15]} 24. Qb5 {[%emt 0:02:07]} h5 {[%emt 0:00:29]} 25. Rb4 {[%emt 0:01:25]} Re6 {[%emt 0:06:57]} 26. Rc4 {[%emt 0:03:28]} Rg6 {[%emt 0:04:59]} 27. b7 {[%emt 0:01:32]} Bxg3 {[%emt 0:00:58]} 28. hxg3 {[%emt 0:00:31]} Rxg3+ {[%emt 0:00:04]} 29. fxg3 {[%emt 0:00:11]} Qxg3+ {[%emt 0:00:06]} 30. Kh1 {[%emt 0:00:09]} 1/2-1/2

[Event "7th Iberoamerican-ch 2019"]
[Site "Linares"]
[Date "2019.08.13"]
[Round "4.23"]
[White "Esquivias Quintero, Luis Manuel"]
[Black "Gines Esteo, Pedro Antonio"]
[Result "0-1"]
[ECO "B12"]
[WhiteElo "2275"]
[BlackElo "2404"]
[Annotator "NA"]
[PlyCount "82"]
[EventDate "2019.08.10"]
[EventType "swiss"]
[EventCountry "ESP"]
[SourceTitle "playchess.com"]
[Source "ChessBase"]
[SourceQuality "1"]
[TimeControl "5400+30"]

1. e4 {[%emt 0:00:00]} c6 {[%emt 0:02:50]} 2. d4 {[%emt 0:00:00]} d5 {[%emt 0:00:02]} 3. e5 {[%emt 0:00:14]} Bf5 {[%emt 0:00:06]} 4. h4 {[%emt 0:00:19]} h5 {[%emt 0:07:56]} 5. c4 {[%emt 0:00:56]} e6 {[%emt 0:00:17]} 6. Nc3 {[%emt 0:00:17]} Nd7 {[%emt 0:02:07]} 7. cxd5 {[%emt 0:00:52]} cxd5 {[%emt 0:00:10]} 8. Bd3 {[%emt 0:00:59]} Bxd3 {[%emt 0:03:27]} 9. Qxd3 {[%emt 0:01:13]} Nh6 {[%emt 0:02:10]} 10. Bg5 {[%emt 0:09:50]} Be7 {[%emt 0:05:14]} 11. Nb5 {[%emt 0:06:51]} f6 {[%emt 0:17:37]} 12. exf6 {[%emt 0:08:35]} gxf6 {[%emt 0:01:52]} 13. Qg6+ {[%emt 0:12:05]} Nf7 {[%emt 0:00:11]} 14. Bf4 {[%emt 0:01:07]} e5 {[%emt 0:12:04]} 15. Be3 {[%emt 0:04:33]} Qa5+ {[%emt 0:19:29]} 16. Nc3 {[%emt 0:00:07]} Nf8 {[%emt 0:00:19]} 17. Qf5 {[%emt 0:04:07]} Nd6 {[%emt 0:02:09]} 18. Qh3 {[%emt 0:01:47]} b5 {[%emt 0:06:40]} 19. Nge2 {[%emt 0:03:35]} b4 {[%emt 0:00:05]} 20. Nd1 {[%emt 0:01:42]} Qa6 {[%emt 0:01:48]} 21. Rc1 {[%emt 0:06:22]} Rd8 {[%emt 0:03:10]} 22. Qf3 {[%emt 0:15:57]} Ne4 {[%emt 0:04:34]} 23. O-O {[%emt 0:04:38]} Ng6 24. Re1 {[%emt 0:03:36]} Qe6 {[%emt 0:03:42]} 25. g3 {[%emt 0:00:23]} Qh3 {[%emt 0:01:09]} 26. Qg2 {[%emt 0:03:29]} Qf5 {[%emt 0:00:04]} 27. Kh2 {[%emt 0:02:02]} Kf7 {[%emt 0:01:42]} 28. b3 {[%emt 0:00:46]} Rc8 {[%emt 0:01:15]} 29. Nb2 {[%emt 0:00:06]} Bd6 {[%emt 0:01:11]} 30. Qh3 {[%emt 0:00:58]} Ne7 {[%emt 0:00:43]} 31. Qg2 {[%emt 0:05:17]} Rhg8 {[%emt 0:00:22]} 32. Rxc8 {[%emt 0:00:57]} Rxc8 {[%emt 0:00:01]} 33. Rc1 {[%emt 0:00:28]} Nc3 {[%emt 0:01:26]} 34. Nxc3 {[%emt 0:00:32]} bxc3 {[%emt 0:00:01]} 35. Na4 {[%emt 0:00:14]} c2 {[%emt 0:00:36]} 36. dxe5 {[%emt 0:02:02]} fxe5 {[%emt 0:00:34]} 37. Qf1 {[%emt 0:00:39]} Ba3 {[%emt 0:00:45]} 38. Re1 {[%emt 0:00:03]} Bb4 {[%emt 0:00:27]} 39. Rc1 {[%emt 0:01:17]} d4 {[%emt 0:00:08]} 40. Bg5 {[%emt 0:00:09]} d3 {[%emt 0:00:16]} 41. Bxe7 {[%emt 0:00:13]} Kxe7 {[%emt 0:00:23]} 0-1

[Event "7th Iberoamerican-ch 2019"]
[Site "Linares"]
[Date "2019.08.13"]
[Round "4.24"]
[White "Forgas Moreno, Yaniela"]
[Black "Merario Alarcon, Andres"]
[Result "1/2-1/2"]
[ECO "B92"]
[WhiteElo "2272"]
[BlackElo "2400"]
[Annotator "NA"]
[PlyCount "148"]
[EventDate "2019.08.10"]
[EventType "swiss"]
[EventCountry "ESP"]
[SourceTitle "playchess.com"]
[Source "ChessBase"]
[SourceQuality "1"]
[TimeControl "5400+30"]

1. e4 {[%emt 0:00:00]} c5 {[%emt 0:00:00]} 2. Nf3 {[%emt 0:00:00]} d6 {[%emt 0:00:37]} 3. d4 {[%emt 0:00:03]} cxd4 {[%emt 0:00:09]} 4. Nxd4 {[%emt 0:00:04]} Nf6 {[%emt 0:00:23]} 5. Nc3 {[%emt 0:00:06]} a6 {[%emt 0:00:47]} 6. Be2 {[%emt 0:00:15]} e5 {[%emt 0:01:04]} 7. Nb3 {[%emt 0:00:08]} Be7 {[%emt 0:00:52]} 8. O-O {[%emt 0:00:11]} O-O {[%emt 0:01:11]} 9. Kh1 {[%emt 0:00:08]} b6 {[%emt 0:01:36]} 10. Be3 {[%emt 0:00:31]} Bb7 {[%emt 0:00:29]} 11. f3 {[%emt 0:00:11]} b5 {[%emt 0:00:16]} 12. a4 {[%emt 0:01:21]} b4 {[%emt 0:00:09]} 13. Nd5 {[%emt 0:00:04]} Nxd5 {[%emt 0:00:06]} 14. exd5 {[%emt 0:00:04]} Nd7 {[%emt 0:01:14]} 15. a5 {[%emt 0:00:50]} Rc8 {[%emt 0:12:48]} 16. Bd3 {[%emt 0:02:04]} Nf6 {[%emt 0:08:18]} 17. Be4 {[%emt 0:00:45]} Nxe4 {[%emt 0:05:23]} 18. fxe4 {[%emt 0:00:06]} Qc7 {[%emt 0:00:30]} 19. Rc1 {[%emt 0:06:47]} f5 {[%emt 0:02:01]} 20. Bb6 {[%emt 0:05:03]} Qd7 {[%emt 0:04:28]} 21. exf5 {[%emt 0:27:31]} Qb5 {[%emt 0:01:29]} 22. c4 {[%emt 0:07:17]} bxc3 {[%emt 0:13:50]} 23. bxc3 {[%emt 0:01:36]} Qxd5 {[%emt 0:00:21]} 24. Qxd5+ {[%emt 0:00:07]} Bxd5 {[%emt 0:00:02]} 25. Nd2 {[%emt 0:00:11]} Bg5 {[%emt 0:03:01]} 26. Rcd1 {[%emt 0:00:32]} Bb7 {[%emt 0:15:56]} 27. Nf3 {[%emt 0:04:32]} Bf4 {[%emt 0:07:35]} 28. Ne1 {[%emt 0:13:54]} Rxf5 {[%emt 0:04:39]} 29. Rxd6 {[%emt 0:00:37]} Rh5 {[%emt 0:00:52]} 30. Bg1 {[%emt 0:01:32]} Rh6 {[%emt 0:03:46]} 31. Rxh6 {[%emt 0:01:02]} Bxh6 {[%emt 0:00:28]} 32. Nd3 {[%emt 0:00:44]} Rxc3 {[%emt 0:01:42]} 33. Nxe5 {[%emt 0:01:35]} Rc2 {[%emt 0:00:51]} 34. Rf2 {[%emt 0:00:24]} Rc1 {[%emt 0:00:43]} 35. Nd7 {[%emt 0:01:10]} g6 {[%emt 0:01:58]} 36. Nf6+ {[%emt 0:02:24]} Kg7 {[%emt 0:00:52]} 37. Ng4 {[%emt 0:03:14]} Bg5 {[%emt 0:00:15]} 38. Re2 {[%emt 0:00:28]} h5 {[%emt 0:00:48]} 39. Ne5 {[%emt 0:00:37]} Ra1 {[%emt 0:01:31]} 40. Nc4 {[%emt 0:02:52]} Bf6 {[%emt 0:00:34]} 41. Rd2 {[%emt 0:00:23]} Bc6 {[%emt 0:00:59]} 42. Rd6 {[%emt 0:04:18]} Bb5 {[%emt 0:01:11]} 43. Ne3 {[%emt 0:01:29]} Rxa5 {[%emt 0:00:11]} 44. Nd5 {[%emt 0:00:11]} Bb2 {[%emt 0:01:27]} 45. Nc7 {[%emt 0:02:05]} Bc4 {[%emt 0:01:15]} 46. Rc6 {[%emt 0:01:25]} Bd3 {[%emt 0:00:47]} 47. Rd6 {[%emt 0:00:24]} Ra3 {[%emt 0:00:46]} 48. Ne6+ {[%emt 0:00:58]} Kf7 {[%emt 0:00:29]} 49. h4 {[%emt 0:00:35]} Ke7 {[%emt 0:00:26]} 50. Rb6 {[%emt 0:00:22]} Ra2 {[%emt 0:01:33]} 51. Bc5+ {[%emt 0:00:47]} Ke8 {[%emt 0:00:32]} 52. Nf4 {[%emt 0:00:30]} Bf5 {[%emt 0:00:30]} 53. Nxg6 {[%emt 0:00:44]} a5 {[%emt 0:01:38]} 54. Kh2 {[%emt 0:01:16]} a4 {[%emt 0:00:19]} 55. Kg3 {[%emt 0:00:44]} a3 {[%emt 0:01:00]} 56. Kf4 {[%emt 0:00:14]} Bxg6 {[%emt 0:00:35]} 57. Rxg6 {[%emt 0:00:04]} Ra1 {[%emt 0:00:09]} 58. Ra6 {[%emt 0:04:17]} a2 {[%emt 0:01:03]} 59. Kg5 {[%emt 0:00:22]} Kd7 {[%emt 0:00:33]} 60. Be3 {[%emt 0:01:13]} Bc3 {[%emt 0:00:31]} 61. Bf4 {[%emt 0:00:24]} Ke8 62. g3 {[%emt 0:00:14]} Kf7 {[%emt 0:00:58]} 63. Kxh5 {[%emt 0:00:28]} Bf6 {[%emt 0:00:01]} 64. Ra7+ {[%emt 0:00:18]} Ke6 {[%emt 0:00:10]} 65. Kg6 {[%emt 0:00:11]} Bxh4 {[%emt 0:00:16]} 66. Ra6+ {[%emt 0:03:50]} Kd5 {[%emt 0:01:05]} 67. Ra5+ {[%emt 0:00:52]} Ke4 {[%emt 0:00:33]} 68. Ra4+ {[%emt 0:02:34]} Kd5 {[%emt 0:00:48]} 69. Ra5+ {[%emt 0:00:29]} Ke4 {[%emt 0:00:11]} 70. Ra4+ {[%emt 0:00:25]} Kd5 {[%emt 0:00:40]} 71. Ra5+ {[%emt 0:00:05]} Kc6 {[%emt 0:00:47]} 72. Be5 {[%emt 0:00:21]} Rg1 {[%emt 0:00:12]} 73. Rxa2 {[%emt 0:00:11]} Bxg3 {[%emt 0:00:09]} 74. Bxg3 {[%emt 0:00:06]} Rxg3+ {[%emt 0:00:07]} 1/2-1/2

[Event "7th Iberoamerican-ch 2019"]
[Site "Linares"]
[Date "2019.08.13"]
[Round "4.25"]
[White "Teran Alvarez, Ismael"]
[Black "Almagro Mazariegos, Sebastian"]
[Result "1/2-1/2"]
[ECO "B53"]
[WhiteElo "2392"]
[BlackElo "2268"]
[Annotator "NA"]
[PlyCount "75"]
[EventDate "2019.08.10"]
[EventType "swiss"]
[EventCountry "ESP"]
[SourceTitle "playchess.com"]
[Source "ChessBase"]
[SourceQuality "1"]
[TimeControl "5400+30"]

1. e4 {[%emt 0:00:00]} c5 {[%emt 0:00:00]} 2. Nf3 {[%emt 0:00:00]} d6 {[%emt 0:00:00]} 3. d4 {[%emt 0:00:16]} cxd4 {[%emt 0:00:00]} 4. Qxd4 {[%emt 0:00:20]} a6 {[%emt 0:00:55]} 5. h3 {[%emt 0:01:35]} Nc6 {[%emt 0:01:32]} 6. Qe3 {[%emt 0:00:11]} Nf6 {[%emt 0:01:33]} 7. c4 {[%emt 0:02:16]} e6 {[%emt 0:01:28]} 8. Be2 {[%emt 0:00:52]} Be7 {[%emt 0:01:20]} 9. O-O {[%emt 0:00:16]} O-O {[%emt 0:01:08]} 10. Rd1 {[%emt 0:02:31]} Qc7 {[%emt 0:00:40]} 11. Nc3 {[%emt 0:00:54]} b6 {[%emt 0:07:02]} 12. b3 {[%emt 0:08:20]} Bb7 {[%emt 0:01:37]} 13. Bb2 {[%emt 0:00:15]} Rfd8 {[%emt 0:12:06]} 14. Rac1 {[%emt 0:01:01]} Ne5 {[%emt 0:00:45]} 15. Nd4 {[%emt 0:14:34]} Ned7 {[%emt 0:06:11]} 16. Nd5 {[%emt 0:20:10]} exd5 {[%emt 0:01:08]} 17. cxd5 {[%emt 0:00:04]} Qb8 {[%emt 0:05:33]} 18. Nc6 {[%emt 0:00:57]} Bxc6 {[%emt 0:00:04]} 19. dxc6 {[%emt 0:00:08]} Nc5 {[%emt 0:01:54]} 20. b4 {[%emt 0:06:28]} Ne6 {[%emt 0:01:18]} 21. e5 {[%emt 0:11:34]} Ne8 {[%emt 0:02:12]} 22. f4 {[%emt 0:05:04]} dxe5 {[%emt 0:15:57]} 23. Bxe5 {[%emt 0:00:35]} Bd6 {[%emt 0:03:06]} 24. Rxd6 {[%emt 0:07:07]} Rxd6 {[%emt 0:06:12]} 25. f5 {[%emt 0:01:59]} N6c7 {[%emt 0:01:03]} 26. Bxd6 {[%emt 0:06:42]} Nxd6 {[%emt 0:00:05]} 27. Bf3 {[%emt 0:02:16]} Nxf5 {[%emt 0:04:55]} 28. Qf2 {[%emt 0:01:40]} g6 {[%emt 0:12:31]} 29. Rd1 {[%emt 0:00:56]} b5 {[%emt 0:02:30]} 30. Rd7 {[%emt 0:01:58]} Ne6 {[%emt 0:04:44]} 31. c7 {[%emt 0:02:06]} Nxc7 {[%emt 0:02:18]} 32. Bxa8 {[%emt 0:00:27]} Nxa8 {[%emt 0:00:20]} 33. Qa7 {[%emt 0:01:39]} Qe8 {[%emt 0:01:36]} 34. Rb7 {[%emt 0:00:35]} Qe1+ {[%emt 0:00:58]} 35. Kh2 {[%emt 0:00:02]} Qg3+ {[%emt 0:00:59]} 36. Kg1 {[%emt 0:00:30]} Qe1+ {[%emt 0:00:41]} 37. Kh2 {[%emt 0:00:02]} Qg3+ {[%emt 0:00:07]} 38. Kg1 1/2-1/2